[Event "*** Titled Tuesday 3|2 Blitz (Early)"]
[Site "Chess.com"]
[Date "2016.12.06"]
[Round "1"]
[White "FearlessKing64"]
[Black "ZhuChenChess"]
[Result "0-1"]
[WhiteElo "1968"]
[BlackElo "2404"]
[TimeControl "180+2"]
[EndTime "11:10:21 PST"]
[Termination "ZhuChenChess won by resignation"]

1. e4 {[%clk 0:03:02]} 1... c5 {[%clk 0:02:58.2]} 2. Nf3 {[%clk 0:03:01.8]} 2...
d6 {[%clk 0:02:58.2]} 3. d4 {[%clk 0:03:02.9]} 3... cxd4 {[%clk 0:02:57.9]} 4.
Nxd4 {[%clk 0:03:04.8]} 4... Nf6 {[%clk 0:02:58.6]} 5. Nc3 {[%clk 0:03:03.4]}
5... a6 {[%clk 0:02:59.9]} 6. Be2 {[%clk 0:02:55.9]} 6... e5 {[%clk 0:02:52]} 7.
Nb3 {[%clk 0:02:56.3]} 7... Be7 {[%clk 0:02:52.2]} 8. a4 {[%clk 0:02:55.6]} 8...
O-O {[%clk 0:02:51.2]} 9. a5 {[%clk 0:02:55]} 9... Be6 {[%clk 0:02:49]} 10. Be3
{[%clk 0:02:55.5]} 10... Nbd7 {[%clk 0:02:49]} 11. O-O {[%clk 0:02:55.2]} 11...
Rc8 {[%clk 0:02:46.5]} 12. Qd2 {[%clk 0:02:46.1]} 12... Rc6 {[%clk 0:02:42.1]}
13. Rfc1 {[%clk 0:02:35.8]} 13... Qc7 {[%clk 0:02:41.3]} 14. Bf3 {[%clk
0:02:35.9]} 14... Rc8 {[%clk 0:02:38.8]} 15. h3 {[%clk 0:02:08.2]} 15... h6
{[%clk 0:02:27.3]} 16. Ra4 {[%clk 0:01:31.4]} 16... Nf8 {[%clk 0:01:58.9]} 17.
Bb6 {[%clk 0:01:30.3]} 17... Qd7 {[%clk 0:01:59]} 18. Raa1 {[%clk 0:01:25.3]}
18... Ng6 {[%clk 0:01:56.2]} 19. Nd5 {[%clk 0:01:15.2]} 19... Bxd5 {[%clk
0:01:49.8]} 20. exd5 {[%clk 0:01:15.7]} 20... Rc4 {[%clk 0:01:50.9]} 21. Be2
{[%clk 0:01:07.7]} 21... Rh4 {[%clk 0:01:38.1]} 22. Bf1 {[%clk 0:00:52.7]} 22...
Nf4 {[%clk 0:01:25.6]} 23. Be3 {[%clk 0:00:51.9]} 23... N4xd5 {[%clk 0:01:24.4]}
24. c4 {[%clk 0:00:37.6]} 24... Nxe3 {[%clk 0:01:03.1]} 25. Qxe3 {[%clk
0:00:39.5]} 25... Re4 {[%clk 0:00:48.5]} 26. Qf3 {[%clk 0:00:35.8]} 26... Rf4
{[%clk 0:00:47.7]} 27. Qe3 {[%clk 0:00:34.8]} 27... Qf5 {[%clk 0:00:45.7]} 28.
Nd2 {[%clk 0:00:33.5]} 28... Qg6 {[%clk 0:00:21.7]} 29. Re1 {[%clk 0:00:25.8]}
29... Rh4 {[%clk 0:00:19.8]} 30. Bd3 {[%clk 0:00:24.9]} 30... Qg5 {[%clk
0:00:20.3]} 31. Nf3 {[%clk 0:00:19.1]} 31... Qxe3 {[%clk 0:00:20.8]} 32. Rxe3
{[%clk 0:00:20.1]} 32... Rf4 {[%clk 0:00:21.2]} 33. Nd2 {[%clk 0:00:20]} 33...
Rd4 {[%clk 0:00:22.1]} 34. Nf3 {[%clk 0:00:16.8]} 34... Rxd3 {[%clk 0:00:22.4]}
35. Rxd3 {[%clk 0:00:17.5]} 35... e4 {[%clk 0:00:24]} 36. Re3 {[%clk 0:00:18.3]}
36... Rxc4 {[%clk 0:00:24]} 37. Nd2 {[%clk 0:00:18.7]} 37... Rd4 {[%clk
0:00:22.1]} 38. Nb3 {[%clk 0:00:17.2]} 38... Rb4 {[%clk 0:00:22.4]} 39. Nd2
{[%clk 0:00:17.6]} 39... d5 {[%clk 0:00:21]} 40. b3 {[%clk 0:00:17.5]} 40... Rd4
{[%clk 0:00:17.3]} 41. Nf1 {[%clk 0:00:16.8]} 41... Bb4 {[%clk 0:00:16.9]} 42.
Ng3 {[%clk 0:00:17.6]} 42... Rd2 {[%clk 0:00:16.8]} 43. Rc1 {[%clk 0:00:16.9]}
43... Rb2 {[%clk 0:00:15]} 44. Rc8+ {[%clk 0:00:14.3]} 44... Kh7 {[%clk
0:00:14.8]} 45. Nf5 {[%clk 0:00:14.9]} 45... g6 {[%clk 0:00:12.6]} 46. Ng3
{[%clk 0:00:14.9]} 46... d4 {[%clk 0:00:11.3]} 47. Re2 {[%clk 0:00:14.9]} 47...
Rb1+ {[%clk 0:00:10.7]} 48. Kh2 {[%clk 0:00:16.2]} 48... d3 {[%clk 0:00:12.1]}
49. Re3 {[%clk 0:00:15.2]} 49... d2 {[%clk 0:00:13.1]} 50. Rd8 {[%clk
0:00:14.8]} 50... d1=Q {[%clk 0:00:13.5]} 51. Rxd1 {[%clk 0:00:16.7]} 51... Rxd1
{[%clk 0:00:14.3]} 52. Nxe4 {[%clk 0:00:18.6]} 52... Nxe4 {[%clk 0:00:14.9]} 53.
Rxe4 {[%clk 0:00:20.5]} 53... Bxa5 {[%clk 0:00:16.1]} 54. Re7 {[%clk 0:00:21.2]}
54... Kg7 {[%clk 0:00:16.9]} 55. Rxb7 {[%clk 0:00:21.8]} 55... Bc3 {[%clk
0:00:17.6]} 56. Rb6 {[%clk 0:00:21.4]} 56... a5 {[%clk 0:00:17.6]} 57. Rb5
{[%clk 0:00:20.5]} 57... Rd2 {[%clk 0:00:18.2]} 58. Kg3 {[%clk 0:00:21.3]} 58...
Rb2 {[%clk 0:00:19.2]} 59. Kf3 {[%clk 0:00:21]} 59... Be1 {[%clk 0:00:19.9]} 60.
Ke4 {[%clk 0:00:19.8]} 60... Re2+ {[%clk 0:00:20.3]} 61. Kd3 {[%clk 0:00:20.1]}
61... Rxf2 {[%clk 0:00:21.3]} 62. Re5 {[%clk 0:00:19.9]} 62... Bb4 {[%clk
0:00:21.6]} 0-1

[Event "*** Titled Tuesday 3|2 Blitz (Early)"]
[Site "Chess.com"]
[Date "2016.12.06"]
[Round "1"]
[White "bilelou"]
[Black "platy3"]
[Result "1/2-1/2"]
[WhiteElo "2363"]
[BlackElo "2697"]
[TimeControl "180+2"]
[EndTime "11:12:09 PST"]
[Termination "Game drawn by repetition"]

1. d4 {[%clk 0:03:02]} 1... Nf6 {[%clk 0:03:00.4]} 2. c4 {[%clk 0:03:02.4]} 2...
e6 {[%clk 0:03:01.9]} 3. Nf3 {[%clk 0:03:02.8]} 3... d5 {[%clk 0:03:02.5]} 4. g3
{[%clk 0:03:03.2]} 4... dxc4 {[%clk 0:03:03.2]} 5. Bg2 {[%clk 0:03:03.8]} 5...
Bb4+ {[%clk 0:03:04.2]} 6. Nbd2 {[%clk 0:03:03.6]} 6... O-O {[%clk 0:03:03.7]}
7. O-O {[%clk 0:03:03.3]} 7... c3 {[%clk 0:02:48.7]} 8. bxc3 {[%clk 0:02:32.8]}
8... Bxc3 {[%clk 0:02:50.6]} 9. Rb1 {[%clk 0:02:34.5]} 9... c6 {[%clk
0:02:29.6]} 10. Nc4 {[%clk 0:02:26.5]} 10... Ba5 {[%clk 0:02:06.5]} 11. Ba3
{[%clk 0:02:25]} 11... Bc7 {[%clk 0:02:00.3]} 12. Bxf8 {[%clk 0:02:22.8]} 12...
Qxf8 {[%clk 0:02:02.2]} 13. Qc2 {[%clk 0:02:20.8]} 13... Nbd7 {[%clk 0:02:02.4]}
14. Rfc1 {[%clk 0:02:14.3]} 14... Nb6 {[%clk 0:02:02.9]} 15. Na5 {[%clk
0:02:09.9]} 15... Qa3 {[%clk 0:01:53.1]} 16. Nb3 {[%clk 0:02:06.9]} 16... Nbd5
{[%clk 0:01:51.2]} 17. Nc5 {[%clk 0:02:01.2]} 17... b6 {[%clk 0:01:49.4]} 18.
Nd3 {[%clk 0:02:01.1]} 18... Bb7 {[%clk 0:01:50.7]} 19. Nfe5 {[%clk 0:02:00.2]}
19... Rc8 {[%clk 0:01:49.6]} 20. Rb3 {[%clk 0:01:48.5]} 20... Qf8 {[%clk
0:01:35]} 21. Qb2 {[%clk 0:01:33.5]} 21... Bb8 {[%clk 0:01:22.2]} 22. Nc4 {[%clk
0:01:29.5]} 22... Ba6 {[%clk 0:01:19.8]} 23. Ra3 {[%clk 0:01:28]} 23... Bb7
{[%clk 0:01:19.1]} 24. e4 {[%clk 0:01:27]} 24... Ne7 {[%clk 0:01:19.5]} 25. Rb3
{[%clk 0:01:25.1]} 25... Qd8 {[%clk 0:01:19.8]} 26. a4 {[%clk 0:01:25.7]} 26...
Ba6 {[%clk 0:01:19.3]} 27. a5 {[%clk 0:01:24.9]} 27... Bc7 {[%clk 0:01:19]} 28.
axb6 {[%clk 0:01:25.4]} 28... axb6 {[%clk 0:01:20.9]} 29. Nde5 {[%clk
0:01:24.3]} 29... Rb8 {[%clk 0:01:12.4]} 30. Ne3 {[%clk 0:01:19.5]} 30... Bb5
{[%clk 0:01:09.7]} 31. N5c4 {[%clk 0:01:05.8]} 31... Ne8 {[%clk 0:01:01.1]} 32.
Na3 {[%clk 0:01:05.8]} 32... Ba6 {[%clk 0:01:02.2]} 33. Nac4 {[%clk 0:01:06.2]}
33... Bb5 {[%clk 0:01:02.8]} 34. h4 {[%clk 0:01:05.5]} 34... h6 {[%clk
0:01:03.3]} 35. Rd1 {[%clk 0:01:04.4]} 35... Ba4 {[%clk 0:01:02.8]} 36. d5
{[%clk 0:01:03]} 36... Bxb3 {[%clk 0:01:03.3]} 37. Qxb3 {[%clk 0:01:04.2]} 37...
exd5 {[%clk 0:00:55.8]} 38. exd5 {[%clk 0:01:04.8]} 38... cxd5 {[%clk
0:00:57.3]} 39. Nxd5 {[%clk 0:01:01.3]} 39... Nxd5 {[%clk 0:00:58.7]} 40. Bxd5
{[%clk 0:01:02.9]} 40... Qe7 {[%clk 0:01:00.2]} 41. Ne3 {[%clk 0:01:01.2]} 41...
Nf6 {[%clk 0:00:56]} 42. Bc4 {[%clk 0:00:52.9]} 42... Rd8 {[%clk 0:00:56.1]} 43.
Rxd8+ {[%clk 0:00:49]} 43... Bxd8 {[%clk 0:00:58]} 44. Qd3 {[%clk 0:00:42.9]}
44... Bc7 {[%clk 0:00:49.3]} 45. Qd4 {[%clk 0:00:37.7]} 45... Qd8 {[%clk
0:00:37.5]} 46. Nd5 {[%clk 0:00:32.9]} 46... Nxd5 {[%clk 0:00:37.5]} 47. Bxd5
{[%clk 0:00:34]} 47... Qe7 {[%clk 0:00:38.2]} 48. Qc4 {[%clk 0:00:34]} 48... g6
{[%clk 0:00:37.4]} 49. Kg2 {[%clk 0:00:34.8]} 49... Bd6 {[%clk 0:00:38.4]} 50.
Qd3 {[%clk 0:00:34.6]} 50... Kh7 {[%clk 0:00:36.9]} 51. Qc4 {[%clk 0:00:34.4]}
51... Kg8 {[%clk 0:00:30]} 52. Qd3 {[%clk 0:00:35.3]} 52... Qf6 {[%clk
0:00:27.2]} 53. Bf3 {[%clk 0:00:30.1]} 53... Bc5 {[%clk 0:00:27.9]} 54. Qb5
{[%clk 0:00:30.8]} 54... Kg7 {[%clk 0:00:27.1]} 55. Qe2 {[%clk 0:00:31.4]} 55...
Qd4 {[%clk 0:00:27.5]} 56. Bc6 {[%clk 0:00:30.2]} 56... Qf6 {[%clk 0:00:24.1]}
57. Bf3 {[%clk 0:00:30]} 57... g5 {[%clk 0:00:25.7]} 58. hxg5 {[%clk 0:00:30.9]}
58... hxg5 {[%clk 0:00:27.6]} 59. Be4 {[%clk 0:00:31.9]} 59... b5 {[%clk
0:00:27.3]} 60. Bb1 {[%clk 0:00:29.6]} 60... b4 {[%clk 0:00:28.5]} 61. Qc2
{[%clk 0:00:30.6]} 61... Bb6 {[%clk 0:00:23.6]} 62. f3 {[%clk 0:00:27.7]} 62...
Qd4 {[%clk 0:00:12.2]} 63. Kh3 {[%clk 0:00:28.6]} 63... Bd8 {[%clk 0:00:08.1]}
64. Qh7+ {[%clk 0:00:29]} 64... Kf8 {[%clk 0:00:09.7]} 65. Qc2 {[%clk
0:00:29.4]} 65... Bf6 {[%clk 0:00:10.4]} 66. Ba2 {[%clk 0:00:29.5]} 66... Qd7+
{[%clk 0:00:10.1]} 67. Kg2 {[%clk 0:00:30.2]} 67... Bc3 {[%clk 0:00:11.2]} 68.
Qb3 {[%clk 0:00:31.4]} 68... Qd2+ {[%clk 0:00:11.2]} 69. Kh3 {[%clk 0:00:31.6]}
69... Qd7+ {[%clk 0:00:12.8]} 70. Kg2 {[%clk 0:00:32.9]} 70... Kg7 {[%clk
0:00:14.5]} 71. Qc4 {[%clk 0:00:34]} 71... Qe7 {[%clk 0:00:13]} 72. Bb3 {[%clk
0:00:34.9]} 72... Qd7 {[%clk 0:00:12.9]} 73. Ba2 {[%clk 0:00:33.7]} 73... Qd2+
{[%clk 0:00:13.8]} 74. Kh3 {[%clk 0:00:34.2]} 74... Qd7+ {[%clk 0:00:15]} 75.
Kg2 {[%clk 0:00:35.5]} 75... Be1 {[%clk 0:00:15.5]} 76. Bb3 {[%clk 0:00:31.7]}
76... Bc3 {[%clk 0:00:11.2]} 77. Ba2 {[%clk 0:00:32.9]} 1/2-1/2

[Event "*** Titled Tuesday 3|2 Blitz (Early)"]
[Site "Chess.com"]
[Date "2016.12.06"]
[Round "2"]
[White "Rumpel-VK"]
[Black "Noukii"]
[Result "0-1"]
[WhiteElo "2455"]
[BlackElo "2667"]
[TimeControl "180+2"]
[EndTime "11:16:39 PST"]
[Termination "Noukii won by resignation"]

1. d4 {[%clk 0:01:38.2]} 1... d5 {[%clk 0:02:58.6]} 2. Nf3 {[%clk 0:01:39.4]}
2... Nf6 {[%clk 0:02:59.6]} 3. Bf4 {[%clk 0:01:40.8]} 3... c5 {[%clk 0:03:00.7]}
4. e3 {[%clk 0:01:42.1]} 4... Nc6 {[%clk 0:03:02.3]} 5. c3 {[%clk 0:01:43]} 5...
Qb6 {[%clk 0:03:03.9]} 6. Qb3 {[%clk 0:01:43.5]} 6... c4 {[%clk 0:03:05.6]} 7.
Qxb6 {[%clk 0:01:44.3]} 7... axb6 {[%clk 0:03:07.5]} 8. Nbd2 {[%clk 0:01:45.6]}
8... b5 {[%clk 0:03:07.6]} 9. a3 {[%clk 0:01:46.8]} 9... Bf5 {[%clk 0:03:08.7]}
10. Ne5 {[%clk 0:01:46.9]} 10... e6 {[%clk 0:03:09.6]} 11. Nxc6 {[%clk
0:01:47.6]} 11... bxc6 {[%clk 0:03:10.7]} 12. Rc1 {[%clk 0:01:48]} 12... Nd7
{[%clk 0:03:10.8]} 13. f3 {[%clk 0:01:47]} 13... Nb6 {[%clk 0:03:11.8]} 14. e4
{[%clk 0:01:47.9]} 14... Bg6 {[%clk 0:03:13.3]} 15. Kd1 {[%clk 0:01:42.1]} 15...
Na4 {[%clk 0:03:14.3]} 16. Kc2 {[%clk 0:01:43.3]} 16... Be7 {[%clk 0:03:07.4]}
17. Re1 {[%clk 0:01:43.4]} 17... O-O {[%clk 0:03:07.2]} 18. h4 {[%clk
0:01:44.3]} 18... h6 {[%clk 0:03:07.2]} 19. h5 {[%clk 0:01:44.7]} 19... Bh7
{[%clk 0:03:08.7]} 20. g4 {[%clk 0:01:44.9]} 20... Ra6 {[%clk 0:03:09.9]} 21.
Bg2 {[%clk 0:01:45.6]} 21... Rfa8 {[%clk 0:03:10.9]} 22. Nb1 {[%clk 0:01:38.2]}
22... c5 {[%clk 0:03:08.5]} 23. Be3 {[%clk 0:01:29.9]} 23... b4 {[%clk
0:03:08.1]} 24. axb4 {[%clk 0:01:28.2]} 24... cxb4 {[%clk 0:03:08.5]} 25. Kc1
{[%clk 0:01:24.3]} 25... bxc3 {[%clk 0:03:02.6]} 26. bxc3 {[%clk 0:01:25.1]}
26... Rb6 {[%clk 0:02:58.2]} 27. Re2 {[%clk 0:01:24.4]} 27... Rab8 {[%clk
0:02:57.3]} 0-1

[Event "*** Titled Tuesday 3|2 Blitz (Early)"]
[Site "Chess.com"]
[Date "2016.12.06"]
[Round "2"]
[White "joppie2"]
[Black "Schemato"]
[Result "1-0"]
[WhiteElo "2538"]
[BlackElo "2284"]
[TimeControl "180+2"]
[EndTime "11:16:52 PST"]
[Termination "joppie2 won by resignation"]

1. e4 {[%clk 0:03:02]} 1... e6 {[%clk 0:03:00.1]} 2. d4 {[%clk 0:03:00.8]} 2...
d5 {[%clk 0:03:01.2]} 3. Nc3 {[%clk 0:03:02.4]} 3... Nf6 {[%clk 0:03:01.8]} 4.
Bg5 {[%clk 0:03:03.6]} 4... Bb4 {[%clk 0:03:01.7]} 5. e5 {[%clk 0:03:04.5]} 5...
h6 {[%clk 0:03:03.1]} 6. Bc1 {[%clk 0:03:05]} 6... Ne4 {[%clk 0:03:01.3]} 7. Qg4
{[%clk 0:03:06.7]} 7... g6 {[%clk 0:02:53.7]} 8. a3 {[%clk 0:03:07.7]} 8...
Bxc3+ {[%clk 0:02:51.6]} 9. bxc3 {[%clk 0:03:08.8]} 9... Nc6 {[%clk 0:02:44.4]}
10. Ne2 {[%clk 0:03:06.7]} 10... Bd7 {[%clk 0:02:42.5]} 11. f3 {[%clk
0:03:06.9]} 11... Ng5 {[%clk 0:02:42.8]} 12. h4 {[%clk 0:03:06.4]} 12... Nh7
{[%clk 0:02:42.4]} 13. Bxh6 {[%clk 0:03:07.5]} 13... Qe7 {[%clk 0:02:39.1]} 14.
a4 {[%clk 0:03:03.3]} 14... Na5 {[%clk 0:02:37.6]} 15. Bc1 {[%clk 0:03:01.5]}
15... Nc4 {[%clk 0:02:32.9]} 16. Nf4 {[%clk 0:03:03.2]} 16... O-O-O {[%clk
0:02:26.8]} 17. Bxc4 {[%clk 0:03:03.8]} 17... dxc4 {[%clk 0:02:27.2]} 18. Ba3
{[%clk 0:03:05.7]} 18... Qe8 {[%clk 0:02:28.7]} 19. a5 {[%clk 0:03:06.9]} 19...
a6 {[%clk 0:02:28.3]} 20. Nh3 {[%clk 0:03:00.1]} 20... Bc6 {[%clk 0:02:26.8]}
21. Qf4 {[%clk 0:03:00.5]} 21... Qd7 {[%clk 0:02:23.1]} 22. Kf2 {[%clk
0:03:01.8]} 22... Rdg8 {[%clk 0:02:07.6]} 23. Ng5 {[%clk 0:03:00]} 23... Nxg5
{[%clk 0:02:07.3]} 24. hxg5 {[%clk 0:03:01.9]} 24... Qe8 {[%clk 0:02:00]} 25.
Qf6 {[%clk 0:03:02.4]} 25... Bd5 {[%clk 0:01:44.2]} 26. Rh6 {[%clk 0:02:58.5]}
26... Rxh6 {[%clk 0:01:35.3]} 27. gxh6 {[%clk 0:03:00.4]} 27... Rh8 {[%clk
0:01:36.2]} 28. Rh1 {[%clk 0:03:00.1]} 28... Rh7 {[%clk 0:01:37]} 29. Qg7 {[%clk
0:02:59]} 29... Qh8 {[%clk 0:01:26.9]} 30. Qxh8+ {[%clk 0:02:59.4]} 30... Rxh8
{[%clk 0:01:27.6]} 31. h7 {[%clk 0:03:01.3]} 31... Kd7 {[%clk 0:01:19.7]} 32.
Bc1 {[%clk 0:03:02]} 32... Ke8 {[%clk 0:01:15]} 33. Bg5 {[%clk 0:03:03]} 1-0

[Event "*** Titled Tuesday 3|2 Blitz (Early)"]
[Site "Chess.com"]
[Date "2016.12.06"]
[Round "2"]
[White "Jungle_Jaguar"]
[Black "Kawhi_Leonard2"]
[Result "1-0"]
[WhiteElo "2407"]
[BlackElo "2223"]
[TimeControl "180+2"]
[EndTime "11:16:57 PST"]
[Termination "Jungle_Jaguar won by resignation"]

1. c4 {[%clk 0:03:02]} 1... Nf6 {[%clk 0:02:57.6]} 2. Nc3 {[%clk 0:03:02.1]}
2... c5 {[%clk 0:02:58.4]} 3. g3 {[%clk 0:03:02.2]} 3... d5 {[%clk 0:02:59.1]}
4. cxd5 {[%clk 0:03:01.9]} 4... Nxd5 {[%clk 0:03:00.9]} 5. Bg2 {[%clk 0:03:03]}
5... Nc7 {[%clk 0:03:02.3]} 6. Nf3 {[%clk 0:03:01.4]} 6... Nc6 {[%clk 0:03:02]}
7. O-O {[%clk 0:03:02.2]} 7... e5 {[%clk 0:03:02.8]} 8. d3 {[%clk 0:03:02.5]}
8... Be7 {[%clk 0:03:03.7]} 9. Be3 {[%clk 0:02:55.9]} 9... O-O {[%clk
0:03:03.3]} 10. Rc1 {[%clk 0:02:55]} 10... f6 {[%clk 0:02:56.8]} 11. Nd2 {[%clk
0:02:42.1]} 11... Bd7 {[%clk 0:02:54.6]} 12. Nd5 {[%clk 0:02:22.8]} 12... b6
{[%clk 0:02:40.8]} 13. b4 {[%clk 0:01:59.7]} 13... Nxb4 {[%clk 0:01:37.4]} 14.
Nxc7 {[%clk 0:01:52]} 14... Qxc7 {[%clk 0:01:32.2]} 15. Bxa8 {[%clk 0:01:50.8]}
15... Rxa8 {[%clk 0:01:32.6]} 16. Qb3+ {[%clk 0:01:50.8]} 16... Kh8 {[%clk
0:01:24.2]} 17. Qxb4 {[%clk 0:01:50.9]} 17... Bh3 {[%clk 0:01:24.8]} 18. Rfe1
{[%clk 0:01:41.7]} 1-0

[Event "*** Titled Tuesday 3|2 Blitz (Early)"]
[Site "Chess.com"]
[Date "2016.12.06"]
[Round "2"]
[White "LawrenceTrent"]
[Black "RamonManon0g"]
[Result "1-0"]
[WhiteElo "2437"]
[BlackElo "2293"]
[TimeControl "180+2"]
[EndTime "11:17:02 PST"]
[Termination "LawrenceTrent won by resignation"]

1. e4 {[%clk 0:02:59.5]} 1... c5 {[%clk 0:03:00.8]} 2. Nc3 {[%clk 0:02:59.9]}
2... Nc6 {[%clk 0:03:01.8]} 3. Nf3 {[%clk 0:03:01.3]} 3... d6 {[%clk 0:03:01.7]}
4. Bb5 {[%clk 0:03:01.4]} 4... e5 {[%clk 0:03:01.4]} 5. O-O {[%clk 0:03:01.5]}
5... Nf6 {[%clk 0:03:01.6]} 6. d3 {[%clk 0:03:02.3]} 6... Be7 {[%clk 0:03:02.8]}
7. Nd2 {[%clk 0:03:02.6]} 7... O-O {[%clk 0:03:02.5]} 8. Bxc6 {[%clk 0:03:03.3]}
8... bxc6 {[%clk 0:03:03.4]} 9. f4 {[%clk 0:03:05.2]} 9... exf4 {[%clk
0:02:57.2]} 10. Rxf4 {[%clk 0:03:05.3]} 10... d5 {[%clk 0:02:58.4]} 11. h3
{[%clk 0:03:00.7]} 11... Bd6 {[%clk 0:02:49.8]} 12. Rf1 {[%clk 0:02:59.2]} 12...
Bc7 {[%clk 0:02:29.8]} 13. Nb3 {[%clk 0:02:53.8]} 13... dxe4 {[%clk 0:01:34.7]}
14. Bg5 {[%clk 0:02:46.6]} 14... Qd6 {[%clk 0:01:31.5]} 15. Bf4 {[%clk
0:02:45.5]} 15... Qe7 {[%clk 0:01:30.6]} 16. Bxc7 {[%clk 0:02:45.5]} 16... Qxc7
{[%clk 0:01:32.5]} 17. Rxf6 {[%clk 0:02:23.1]} 17... gxf6 {[%clk 0:01:33]} 18.
Nxe4 {[%clk 0:02:23.6]} 18... Qf4 {[%clk 0:01:22.6]} 19. Qh5 {[%clk 0:02:20.3]}
19... Qf5 {[%clk 0:01:09.8]} 20. Qh6 {[%clk 0:02:18.9]} 20... Qg6 {[%clk
0:00:54.4]} 21. Nxf6+ {[%clk 0:02:17.6]} 21... Kh8 {[%clk 0:00:55.4]} 22. Qxf8+
{[%clk 0:02:16.7]} 1-0

[Event "*** Titled Tuesday 3|2 Blitz (Early)"]
[Site "Chess.com"]
[Date "2016.12.06"]
[Round "2"]
[White "Grootneus"]
[Black "stefanodinn"]
[Result "0-1"]
[WhiteElo "2079"]
[BlackElo "2193"]
[TimeControl "180+2"]
[EndTime "11:17:03 PST"]
[Termination "stefanodinn won by resignation"]

1. e4 {[%clk 0:03:02]} 1... c5 {[%clk 0:02:59.4]} 2. b4 {[%clk 0:03:03.6]} 2...
cxb4 {[%clk 0:02:57.8]} 3. a3 {[%clk 0:03:04.9]} 3... d5 {[%clk 0:02:58.1]} 4.
exd5 {[%clk 0:03:05.9]} 4... Qxd5 {[%clk 0:02:59]} 5. Nf3 {[%clk 0:03:07.7]}
5... e5 {[%clk 0:02:58.2]} 6. axb4 {[%clk 0:03:08.9]} 6... Bxb4 {[%clk
0:02:58.4]} 7. c3 {[%clk 0:03:05.1]} 7... Bd6 {[%clk 0:02:47.3]} 8. Na3 {[%clk
0:02:59.2]} 8... Nf6 {[%clk 0:02:37.2]} 9. Bc4 {[%clk 0:02:47]} 9... Qe4+ {[%clk
0:02:37.4]} 10. Qe2 {[%clk 0:02:37.1]} 10... Qxe2+ {[%clk 0:02:31.2]} 11. Bxe2
{[%clk 0:02:34]} 11... Nc6 {[%clk 0:02:21.4]} 12. Nb5 {[%clk 0:02:35]} 12... Bb8
{[%clk 0:02:20.8]} 13. Ba3 {[%clk 0:02:34.2]} 13... a6 {[%clk 0:02:21.7]} 14.
Nd6+ {[%clk 0:02:33.3]} 14... Bxd6 {[%clk 0:02:14.5]} 15. Bxd6 {[%clk
0:02:35.2]} 15... Bg4 {[%clk 0:02:15.3]} 16. Nxe5 {[%clk 0:02:23.4]} 16... Bxe2
{[%clk 0:02:13.1]} 17. Kxe2 {[%clk 0:02:24.6]} 17... O-O-O {[%clk 0:02:02.9]}
18. Nxc6 {[%clk 0:01:59.5]} 18... Rxd6 {[%clk 0:02:01.3]} 19. Nd4 {[%clk
0:02:00.6]} 19... Re8+ {[%clk 0:01:57.1]} 20. Kf3 {[%clk 0:01:46.8]} 20... Ne4
{[%clk 0:01:54.5]} 21. Ra2 {[%clk 0:01:26.9]} 21... Rf6+ {[%clk 0:01:51.2]} 22.
Kg4 {[%clk 0:01:23.5]} 22... Nxf2+ {[%clk 0:01:51.8]} 0-1

[Event "*** Titled Tuesday 3|2 Blitz (Early)"]
[Site "Chess.com"]
[Date "2016.12.06"]
[Round "2"]
[White "NewBornNow"]
[Black "ZivkovicN"]
[Result "1-0"]
[WhiteElo "2582"]
[BlackElo "2422"]
[TimeControl "180+2"]
[EndTime "11:17:28 PST"]
[Termination "NewBornNow won by resignation"]

1. e4 {[%clk 0:03:02]} 1... c5 {[%clk 0:03:00.2]} 2. Nf3 {[%clk 0:03:01.9]} 2...
d6 {[%clk 0:03:01.5]} 3. d4 {[%clk 0:03:03]} 3... cxd4 {[%clk 0:03:03.4]} 4.
Nxd4 {[%clk 0:03:04.9]} 4... Nf6 {[%clk 0:03:05]} 5. Nc3 {[%clk 0:03:06]} 5...
a6 {[%clk 0:03:06.6]} 6. Be2 {[%clk 0:03:04.9]} 6... e5 {[%clk 0:03:06.5]} 7.
Nb3 {[%clk 0:03:05.9]} 7... Be7 {[%clk 0:02:51.1]} 8. Be3 {[%clk 0:03:06]} 8...
O-O {[%clk 0:02:42.1]} 9. g4 {[%clk 0:03:05.6]} 9... Be6 {[%clk 0:02:11.5]} 10.
g5 {[%clk 0:03:06.3]} 10... Nfd7 {[%clk 0:02:13]} 11. h4 {[%clk 0:03:05.9]}
11... b5 {[%clk 0:02:06.8]} 12. Qd2 {[%clk 0:03:00.4]} 12... Nb6 {[%clk
0:02:01.6]} 13. O-O-O {[%clk 0:02:58.4]} 13... N8d7 {[%clk 0:02:02.6]} 14. f4
{[%clk 0:02:57.4]} 14... exf4 {[%clk 0:02:01.4]} 15. Bxf4 {[%clk 0:02:56.7]}
15... Ne5 {[%clk 0:01:58.7]} 16. h5 {[%clk 0:02:56.1]} 16... Nbc4 {[%clk
0:01:45]} 17. Bxc4 {[%clk 0:02:56.3]} 17... Nxc4 {[%clk 0:01:45.1]} 18. Qg2
{[%clk 0:02:55.9]} 18... b4 {[%clk 0:01:38.7]} 19. Nd5 {[%clk 0:02:55.4]} 19...
Bxd5 {[%clk 0:01:39.3]} 20. exd5 {[%clk 0:02:50.5]} 20... Re8 {[%clk 0:01:17.4]}
21. Nd4 {[%clk 0:02:46.8]} 21... Qa5 {[%clk 0:00:47.5]} 22. Kb1 {[%clk
0:02:45.4]} 22... Bf8 {[%clk 0:00:45.3]} 23. g6 {[%clk 0:02:40.4]} 23... Ne3
{[%clk 0:00:25.9]} 24. gxf7+ {[%clk 0:02:38.3]} 24... Kxf7 {[%clk 0:00:27]} 25.
Bxe3 {[%clk 0:02:38.9]} 1-0